bitfinex/quotes_ETHUSD_20241212
["timestamp","ask_amount","ask_price","bid_price","bid_amount"]
[1734034548016,0.6093,3881.4,3880.4,2.31929]
[1734034548221,3.18569,3881.4,3880.2,2.31945]
[1734034549084,3.18569,3881.4,3880.3,2.3194]
[1734034549288,0.03220931,3881.3,3880.3,2.3194]
[1734034549482,0.6093,3881.2,3880.2,3.0]
[1734034549683,0.6093,3881.2,3880.1,0.52332107]
[1734034550013,0.6093,3881.2,3880.3,2.31939]
[1734034550232,3.10043988,3882.4,3879.5,2.31984]
[1734034550233,0.6093,3880.9,3879.5,2.31984]
[1734034550367,0.6093,3880.9,3879.7,0.52445391]
[1734034550566,0.6093,3880.9,3879.9,2.31959]
[1734034550979,0.6093,3880.9,3879.6,0.231984]
[1734034551186,0.6093,3880.9,3880.5,2.31926]
[1734034551424,0.6093,3880.9,3879.7,0.52413778]
[1734034551563,0.6093,3880.9,3879.8,2.31969]
[1734034552023,0.64151443,3880.9,3879.7,0.15677218]
[1734034552181,0.6093,3880.7,3879.5,2.31983]
[1734034552517,0.6093,3880.7,3879.3,2.32]
[1734034552518,0.64151442,3880.7,3879.3,2.32]
[1734034552813,0.6093,3880.7,3879.7,2.31972]
[1734034553011,0.6093,3880.7,3879.5,0.50683305]
[1734034553167,0.6093,3880.7,3879.8,2.31968]
[1734034553569,0.6093,3880.7,3879.9,0.231968]
[1734034553770,0.6093,3880.7,3880.1,2.31952]
[1734034554040,0.6093,3880.7,3879.9,0.231968]
[1734034554041,0.6093,3880.7,3880.2,2.31944]
[1734034554186,0.6093,3880.7,3879.9,0.231968]
[1734034554381,0.6093,3880.7,3880.1,2.3195]
[1734034555174,0.6093,3880.7,3880.1,2.8746468]
[1734034555369,0.6093,3880.7,3880.1,0.5551468]
[1734034555574,0.6093,3880.7,3880.1,2.3195]
[1734034556018,0.6093,3880.7,3880.2,2.31942]
[1734034556518,0.6093,3880.7,3879.9,2.551598]
[1734034556724,0.6093,3879.9,3879.1,2.22190076]
[1734034557020,0.6093,3879.7,3878.7,2.32036]
[1734034557182,0.6093,3879.7,3878.0,0.12748479]
[1734034557183,0.6093,3879.7,3878.0,1.20208101]
[1734034557386,0.6093,3879.7,3878.5,2.32047]
[1734034557591,0.6093,3879.7,3878.6,2.3204]
[1734034557937,0.6093,3879.7,3878.7,2.55239]
[1734034558069,0.6093,3879.7,3878.7,0.23204]
[1734034558574,3.18681,3879.7,3878.7,0.23204]
[1734034558772,0.6093,3879.7,3878.7,0.23204]
[1734034559013,2.57767,3879.5,3878.7,0.23204]
[1734034559619,3.18685,3879.7,3878.4,2.32048]
[1734034559784,0.6093,3879.7,3878.2,3.51816806]
[1734034559987,0.6093,3879.7,3878.6,2.32041]
[1734034560389,0.6093,3879.7,3878.2,0.51816806]
[1734034560390,0.6093,3879.7,3878.2,3.51816806]
[1734034560626,0.6093,3879.7,3878.3,3.0]
[1734034560922,0.6093,3879.7,3878.4,2.97231681]
[1734034560923,3.18682,3879.7,3878.4,2.97231681]
[1734034561123,3.18682,3879.7,3878.6,2.32041]
[1734034561417,0.6093,3879.7,3878.8,2.32029]
[1734034561602,0.6093,3879.7,3878.6,2.3204]
[1734034562119,3.18683,3879.7,3878.5,3.0]
[1734034562438,2.57781,3879.3,3878.4,0.65181681]
[1734034562740,0.6093,3879.2,3878.4,0.65181681]
[1734034562871,0.6093,3879.2,3878.4,2.32053]
[1734034563243,0.6093,3879.2,3878.5,2.32046]
[1734034563462,0.6093,3879.2,3878.2,2.32065]
[1734034563736,0.6093,3879.2,3878.0,3.0]
[1734034563737,0.6093,3879.2,3878.4,2.32048]
[1734034563913,0.6093,3879.2,3878.0,5.32076]
[1734034564233,0.6093,3879.2,3878.2,3.0]
[1734034564437,0.6093,3879.2,3878.2,5.32065]
[1734034564943,0.6093,3879.2,3878.4,2.32053]
[1734034565611,0.6093,3879.2,3878.1,2.90438819]
[1734034565842,2.57811,3878.9,3878.1,0.58371819]
[1734034566043,3.21966914,3878.8,3877.5,2.32103]
[1734034566264,3.1875,3878.7,3877.6,2.32101]
[1734034566440,0.6093,3878.6,3877.6,2.32101]
[1734034567052,0.6093,3878.6,3877.6,2.32097]
[1734034567255,0.6093,3878.6,3877.7,2.32094]
[1734034567453,0.6093,3878.6,3877.8,3.232094]
[1734034567672,0.6093,3878.6,3877.9,2.32083]
[1734034567872,0.6093,3878.6,3877.9,5.32083]
[1734034568027,0.6093,3878.6,3878.0,3.0]
[1734034568569,0.6093,3878.6,3877.9,2.32078]
[1734034568781,0.6093,3878.6,3878.0,0.2552874]
[1734034568986,0.6093,3878.6,3878.1,2.3207]
[1734034569134,0.6093,3878.6,3878.2,2.32065]
[1734034569330,0.6093,3878.6,3878.0,0.2552874]
[1734034569754,0.6093,3878.6,3877.9,2.32082]
[1734034569755,0.6093,3878.6,3877.9,3.0]
[1734034570079,0.6093,3878.6,3877.8,3.232094]
[1734034570244,0.64153161,3878.6,3877.8,3.232094]
[1734034570452,0.6093,3878.6,3877.8,3.232094]
[1734034570757,0.6093,3878.6,3877.8,2.552994]
[1734034571074,0.6093,3878.6,3877.3,3.51995103]
[1734034571262,0.6093,3878.5,3877.5,2.32105]
[1734034571575,0.64153304,3878.5,3877.3,5.32118]
[1734034571880,2.5787,3878.0,3876.8,0.51654962]
[1734034572182,2.93964737,3878.4,3876.8,0.51654962]
[1734034572183,0.6093,3877.8,3876.8,2.32146]
[1734034572335,0.6093,3877.5,3876.0,2.32194]
[1734034572685,2.57925,3877.1,3876.0,2.32194]
[1734034572832,0.6093,3876.9,3876.0,2.32194]
[1734034573271,0.6093,3876.7,3875.7,2.32211]
[1734034573470,0.6093,3876.7,3875.7,2.636281]
[1734034574113,0.6093,3876.7,3875.4,1.33383048]
[1734034574114,0.6093,3876.7,3875.4,0.51423048]
[1734034574815,0.6093,3876.7,3875.7,2.3221]
[1734034575115,0.6093,3876.7,3875.3,2.32237]
[1734034575320,0.6093,3876.7,3875.1,2.32252]
[1734034575610,3.51671326,3876.4,3875.2,2.32243]
[1734034575826,0.6093,3876.2,3875.2,2.32243]
[1734034576006,0.6093,3876.0,3875.2,2.32243]
[1734034576217,0.03225434,3875.9,3875.2,2.32243]
[1734034576523,0.6093,3876.0,3875.2,2.32243]
[1734034576879,0.03225432,3875.9,3875.2,2.32243]
[1734034577301,0.6093,3876.0,3874.9,3.0]
[1734034577508,0.64155432,3876.0,3875.2,2.32245]
[1734034577877,0.6093,3876.0,3875.2,2.32245]
[1734034578071,0.6093,3876.0,3875.3,2.32239]
[1734034578495,0.6415543,3876.0,3875.3,2.32239]
[1734034578698,0.6093,3876.0,3875.3,2.32239]
[1734034579412,0.6093,3876.0,3875.3,2.32236]
[1734034579721,0.6093,3876.0,3875.0,2.90756193]
[1734034580022,0.6093,3875.8,3874.6,1.31474788]
[1734034580187,0.6093,3875.8,3874.9,2.32261]
[1734034580188,0.03225568,3875.7,3874.9,2.32261]
[1734034581052,0.03225568,3875.7,3874.8,2.32267]
[1734034581223,0.6093,3875.6,3874.8,2.32267]
[1734034581418,0.6093,3875.6,3874.3,5.32296]
[1734034581631,0.6093,3875.6,3874.4,5.95255516]
[1734034581940,0.6093,3875.6,3874.7,2.32272]
[1734034582507,0.6093,3875.6,3874.7,0.0258068]
[1734034582702,0.6093,3875.6,3874.7,2.32276]
[1734034582950,0.6093,3875.6,3875.0,2.32256]
[1734034583148,0.6093,3875.6,3875.0,2.554816]
[1734034583724,0.6093,3875.6,3875.0,0.232256]
[1734034583946,0.6093,3875.6,3874.5,5.32283]
[1734034584119,0.6093,3875.6,3875.0,2.32257]
[1734034584331,0.6093,3875.6,3874.4,2.95259516]
[1734034584535,0.6093,3875.6,3875.0,2.32255]
[1734034584855,0.6093,3875.6,3874.5,3.0]
[1734034585009,2.49123479,3875.1,3874.2,0.1607916]
[1734034585208,0.64156099,3875.0,3874.2,0.1607916]
[1734034585411,0.6093,3875.0,3874.2,0.1607916]
[1734034585649,0.6093,3874.6,3874.2,0.1607916]
[1734034585819,2.49123479,3874.7,3874.2,0.1607916]
[1734034585820,0.6093,3874.4,3874.2,0.1607916]
[1734034586025,3.13280176,3874.3,3874.2,0.1607916]
[1734034586448,6.26391176,3874.3,3874.2,0.1607916]
[1734034586646,6.23164479,3874.3,3874.2,0.1607916]
[1734034587420,6.65690753,3874.3,3874.2,0.1607916]
[1734034588013,0.6093,3874.3,3874.2,0.1607916]
[1734034589138,0.6093,3874.3,3874.2,2.4838516]
[1734034589337,2.58016,3875.8,3874.2,2.4838516]
[1734034589338,0.6093,3874.7,3874.2,0.40917676]
[1734034589563,0.6093,3874.7,3874.2,0.1607916]
[1734034589781,0.6093,3874.7,3874.3,2.323]
[1734034589942,0.6093,3874.7,3874.2,0.1607916]
[1734034590137,0.6093,3874.5,3874.2,0.1607916]
[1734034590738,0.03226793,3874.4,3874.2,0.1607916]
[1734034591240,0.6093,3874.5,3874.2,0.1607916]
[1734034592099,0.03226617,3874.4,3874.2,0.1607916]
[1734034592451,0.6093,3874.5,3874.2,0.1607916]
[1734034593868,0.03226449,3874.4,3874.2,0.1607916]
[1734034594450,0.35451294,3874.4,3874.2,0.1607916]
[1734034594700,2.93557294,3874.4,3874.2,0.1607916]
[1734034594917,3.19041,3874.3,3874.2,0.1607916]
[1734034595216,3.19041,3874.3,3872.6,2.32398]
[1734034595217,2.58186,3873.2,3872.1,2.32431]
[1734034595350,3.19047,3874.2,3871.6,0.8309]
[1734034595351,0.64157779,3873.1,3871.6,0.8309]
[1734034595552,0.03227865,3873.0,3871.9,2.3244]
[1734034595751,0.03227865,3873.0,3871.7,0.52519154]
[1734034595752,0.6093,3872.9,3871.7,0.52519154]
[1734034595950,0.03227962,3872.8,3871.3,2.32474]
[1734034596199,0.03227962,3872.8,3871.4,0.52023836]
[1734034596651,6.10788753,3872.9,3871.9,2.32442]
[1734034596652,3.52579753,3872.9,3871.9,2.32442]
[1734034596850,3.55807906,3872.9,3871.9,2.32442]
[1734034597156,3.55807906,3872.9,3871.9,2.556862]
[1734034597553,6.14011906,3872.9,3871.9,0.232442]
[1734034597775,6.10783753,3872.9,3871.9,0.232442]
[1734034597975,0.03228153,3872.8,3871.8,2.32449]
[1734034598283,0.03228153,3872.8,3871.4,3.52023836]
[1734034598465,2.61440153,3872.8,3871.6,2.32457]
[1734034598667,2.58251,3872.2,3871.1,2.32486]
[1734034598866,2.91649753,3872.4,3870.6,2.32516]
[1734034598867,2.58277,3871.8,3870.6,2.32516]
[1734034599067,0.0322886,3871.7,3870.7,0.315136]
[1734034599385,0.0322886,3871.7,3870.8,0.50553362]
[1734034599693,0.0322886,3871.7,3870.7,0.315136]
[1734034599694,3.52579753,3871.6,3870.4,0.8262]
[1734034599895,3.52579753,3871.6,3870.3,0.1607916]
[1734034599896,2.58309,3871.4,3870.3,0.1607916]
[1734034600054,2.58312,3871.3,3870.3,0.1607916]
[1734034600255,2.61551598,3871.2,3870.3,0.1607916]
[1734034600453,2.58332,3871.0,3870.3,0.1607916]
[1734034600708,0.03229788,3870.9,3870.3,0.1607916]
[1734034601052,0.6093,3871.0,3870.7,2.32514]
[1734034601252,1.1593,3871.9,3870.4,0.8163]
[1734034601493,0.6093,3871.9,3870.4,0.8163]
[1734034601697,0.6093,3871.9,3871.6,2.32457]
[1734034601900,2.58257,3872.1,3870.9,0.02582875]
[1734034602168,0.6093,3872.2,3870.6,3.0]
[1734034602169,0.03228811,3872.0,3870.6,3.0]
[1734034602495,0.6093,3872.2,3870.5,0.33025016]
[1734034602496,0.03229077,3872.1,3871.0,2.32497]
[1734034603001,0.03229077,3872.1,3870.9,2.32502]
[1734034603002,2.61487077,3872.1,3870.9,2.32502]
[1734034603345,0.32241708,3872.0,3871.0,0.02583244]
[1734034603502,0.6093,3872.2,3871.4,2.32473]
[1734034603823,0.6093,3872.2,3870.6,3.0]
[1734034603824,0.6093,3872.2,3871.2,2.32485]
[1734034604112,0.6093,3872.2,3871.9,2.32441]
[1734034604439,0.6093,3872.2,3871.3,0.8138]
[1734034604440,0.6093,3872.2,3872.0,2.32437]
[1734034604702,0.6093,3872.2,3871.6,3.0]
[1734034604703,0.6093,3873.1,3872.3,2.32419]
[1734034604887,0.64158066,3873.1,3871.6,3.0]
[1734034605093,0.32234507,3873.0,3871.9,2.32439]
[1734034605271,0.32234507,3873.0,3872.0,2.32437]
[1734034605272,0.03228194,3872.9,3872.0,2.32437]
[1734034605483,0.32234507,3873.0,3871.6,0.613854]
[1734034605484,0.32234507,3873.0,3872.2,2.32425]
[1734034605786,0.6093,3873.1,3872.2,2.32425]
[1734034606187,0.6093,3873.1,3871.7,2.32456]
[1734034606188,0.6093,3873.1,3871.9,2.32444]
[1734034606511,0.6093,3873.1,3872.2,2.32423]
[1734034606733,0.6093,3873.1,3872.3,2.32414]
[1734034606997,0.6093,3873.1,3871.7,3.0]
[1734034607227,0.03227983,3873.0,3871.9,2.32444]
[1734034607540,0.6093,3873.1,3872.7,2.32394]
[1734034607692,0.6093,3873.1,3872.1,2.91649753]
[1734034607693,0.6093,3873.1,3872.2,3.7601]
[1734034607892,0.6093,3873.9,3872.5,2.91649753]
[1734034608098,0.03227316,3873.8,3872.9,2.3238]
[1734034608447,0.03227316,3873.8,3873.0,2.32373]
[1734034608739,0.6093,3873.9,3872.7,3.02581852]
[1734034608942,0.6093,3873.9,3873.2,2.32362]
[1734034609242,0.6093,3875.2,3874.0,2.32315]
[1734034609243,0.6093,3874.3,3874.0,2.32315]
[1734034609389,0.6093,3874.3,3873.6,2.32338]
[1734034609592,0.6093,3874.3,3873.7,2.32335]
[1734034609823,0.6093,3874.3,3873.9,2.32322]
[1734034610015,0.6093,3874.3,3873.4,5.32351]
[1734034610016,0.6093,3874.3,3873.7,2.32335]
[1734034610190,0.6093,3874.3,3873.4,3.0]
[1734034610391,0.6093,3874.3,3873.5,3.37905029]
[1734034610703,0.6093,3874.3,3874.0,2.32317]
[1734034611094,0.6093,3874.3,3873.8,2.32329]
[1734034611431,0.12682449,3875.8,3873.6,3.0]
[1734034611432,2.58045,3875.3,3873.7,2.32334]
[1734034611590,0.6093,3875.5,3873.5,0.3532362]
[1734034611793,2.5805,3875.3,3874.0,2.32313]
[1734034611989,3.18961,3875.5,3873.7,2.32331]
[1734034612189,3.03226487,3875.4,3874.3,2.32299]
[1734034612394,3.03226487,3875.4,3873.9,3.14238]
[1734034612395,0.03226487,3875.4,3873.9,3.14238]
[1734034612636,0.6093,3875.5,3874.4,2.32291]
[1734034612819,0.37032112,3875.4,3874.0,5.32313]
[1734034613023,0.6093,3875.5,3874.2,3.0]
[1734034613199,0.64156161,3875.5,3874.4,2.32293]
[1734034613401,0.6093,3875.5,3874.2,3.0]
[1734034613715,0.6093,3875.5,3874.6,2.3228]
[1734034613916,0.6093,3875.5,3874.8,2.32266]
[1734034614429,0.6093,3875.5,3874.7,2.32275]
[1734034614635,0.6093,3875.5,3874.9,2.32263]
[1734034614842,0.6093,3875.5,3874.4,2.32294]
[1734034614843,0.03225922,3875.4,3874.4,5.32294]
[1734034615014,0.03225922,3875.4,3874.0,3.0]
[1734034615345,0.6093,3875.1,3873.8,3.0]
[1734034615649,0.6093,3875.1,3873.1,0.8013]
[1734034615650,0.03226483,3875.0,3874.0,2.32312]
[1734034615800,0.32220748,3874.9,3874.0,2.32312]
[1734034616003,0.03226482,3874.8,3874.0,2.32312]
[1734034616269,0.32220748,3874.9,3873.8,3.0]
[1734034616415,0.6093,3875.1,3874.4,2.32292]
[1734034616906,0.03226164,3875.0,3873.8,3.0]
[1734034617138,0.6093,3875.1,3874.2,2.32304]
[1734034617531,0.6093,3875.1,3873.8,3.0]
[1734034617730,0.6093,3875.1,3874.3,2.32298]
[1734034617940,0.6093,3875.1,3873.8,3.0]
[1734034617941,0.03226163,3875.0,3873.8,3.0]
[1734034618322,0.6093,3874.9,3873.6,2.32336]
[1734034618519,0.03226704,3874.8,3873.6,2.32336]
[1734034618904,0.6093,3874.7,3873.6,2.32336]
[1734034619107,0.03226703,3874.6,3873.6,2.32336]
[1734034619405,0.03226702,3874.6,3873.6,2.32336]
[1734034619614,0.03226702,3874.6,3873.3,2.91649753]
[1734034619615,2.58105,3874.4,3873.3,2.32356]
[1734034619813,0.3222407,3874.5,3872.9,2.91649753]
[1734034619814,0.03226702,3874.3,3872.9,2.91649753]
[1734034620008,0.6093,3874.1,3873.0,2.32376]
[1734034620258,0.6093,3874.1,3872.7,0.8013]
[1734034620474,0.03227009,3874.0,3872.9,2.32383]
[1734034620812,2.61362009,3874.0,3872.7,3.12525]
[1734034621166,2.61362009,3874.0,3872.2,0.8013]
[1734034621167,0.6093,3873.8,3872.2,0.8013]
[1734034621341,3.0,3874.6,3872.1,2.91649753]
[1734034621342,0.6093,3873.1,3872.1,2.3243]
[1734034621546,0.6093,3873.1,3871.9,2.32442]
[1734034621761,0.6093,3873.1,3872.4,2.32413]
[1734034622264,0.6093,3873.1,3872.0,2.32438]
[1734034622414,0.6093,3873.1,3872.8,2.32387]
[1734034622615,2.58132,3874.0,3872.9,2.32383]
[1734034622616,0.6093,3873.6,3872.9,2.32383]
[1734034622815,0.6093,3873.6,3872.2,2.32425]
[1734034622816,2.58171,3873.4,3872.2,2.32425]
[1734034623041,0.03227679,3873.3,3872.2,5.32425]
[1734034623262,0.03227548,3873.3,3872.4,2.32413]
[1734034623458,3.19088,3873.6,3872.4,2.32413]
[1734034623459,3.22315551,3873.6,3872.4,2.32413]
[1734034623628,3.22315551,3873.6,3872.4,3.17944955]
[1734034623830,3.19088,3873.6,3872.5,2.32405]
[1734034624046,0.6093,3873.6,3872.5,2.32405]
[1734034624255,3.19092,3873.6,3872.4,3.17944955]
[1734034624548,2.58171,3873.4,3872.4,0.85531955]
[1734034624758,0.03227689,3873.3,3872.1,0.312568]
[1734034625064,0.03227689,3873.3,3871.1,1.07459622]
[1734034625065,0.6093,3872.6,3871.4,3.10538]
[1734034625367,2.58221,3872.7,3870.9,2.32503]
[1734034625368,2.58258,3872.1,3870.9,2.32503]
[1734034625536,0.03228798,3872.0,3870.9,2.32503]
[1734034625734,3.22400732,3872.4,3870.8,0.52453128]
[1734034625942,0.03228674,3872.3,3871.3,2.32476]
[1734034626281,2.61472674,3872.3,3870.8,0.52453128]
[1734034626420,0.35468979,3872.2,3870.9,3.0]
[1734034626626,0.35468979,3872.2,3870.8,0.52453128]
[1734034626820,0.35468979,3872.2,3871.0,2.32494]
[1734034626821,2.93721979,3872.2,3871.0,2.32494]
[1734034627164,2.93721979,3872.2,3870.8,0.52453128]
[1734034627165,0.6093,3872.1,3871.1,2.32491]
[1734034627368,0.0322882,3872.0,3871.1,2.32491]
[1734034627737,0.6093,3872.1,3871.1,2.32491]
[1734034628068,3.2241782,3872.1,3871.0,2.32496]
[1734034628280,2.58287,3871.7,3870.5,2.32527]
[1734034628424,0.87241782,3872.0,3870.1,3.69869753]
[1734034628425,0.6093,3871.6,3870.1,3.69869753]
[1734034628619,0.6093,3871.6,3870.9,2.32501]
[1734034628934,0.6093,3871.6,3870.5,2.91649753]
[1734034629135,0.6093,3871.6,3870.6,2.32522]
[1734034629368,0.6093,3871.6,3870.8,2.32509]
[1734034629576,0.6093,3871.6,3870.6,3.0]
[1734034629784,0.6093,3871.6,3871.1,2.3249]
[1734034629944,0.6093,3871.6,3870.6,6.16542891]
[1734034630129,0.6093,3871.6,3871.0,2.32495]
[1734034630329,0.6093,3871.6,3870.6,6.16542891]
[1734034630330,0.6093,3871.6,3870.8,2.32504]
[1734034630564,0.0322887,3871.5,3870.6,6.16542891]
[1734034630746,0.6093,3871.6,3870.6,3.84025891]
[1734034630969,0.6093,3871.6,3870.9,2.32503]
[1734034631125,0.6093,3871.6,3870.7,2.32515]
[1734034631327,0.6093,3871.6,3870.3,2.4861816]
[1734034631328,2.615301,3871.5,3870.3,2.4861816]
[1734034631541,2.615301,3871.5,3870.3,0.1607916]
[1734034631542,2.58339,3870.9,3870.3,0.1607916]
[1734034631869,0.6093,3870.7,3870.3,0.1607916]
[1734034632070,2.58366,3870.5,3870.3,0.1607916]
[1734034632274,0.96412825,3870.4,3870.3,0.1607916]
[1734034632469,3.54783825,3870.4,3870.3,0.1607916]
[1734034632774,3.51553601,3870.4,3870.3,0.1607916]
[1734034633132,4.06553601,3870.4,3870.3,0.1607916]
[1734034633475,4.09783973,3870.4,3870.3,0.1607916]
[1734034634055,1.48182601,3870.4,3870.3,0.1607916]
[1734034634373,1.1593,3870.4,3870.3,0.1607916]
[1734034634577,1.1916042,3870.4,3870.3,0.1607916]
[1734034634873,0.6093,3870.4,3870.3,0.1607916]
[1734034637278,2.58301,3871.5,3870.3,0.1607916]
[1734034637279,0.6093,3870.9,3870.4,2.32533]
[1734034637479,0.6093,3870.9,3870.3,0.1607916]
[1734034637835,0.6093,3870.9,3870.3,2.4861516]
[1734034638037,0.6093,3870.9,3870.5,2.32527]
[1734034638231,0.6093,3870.9,3870.4,2.32534]
[1734034638479,0.6093,3872.0,3870.5,0.48115516]
[1734034638647,0.6093,3872.0,3871.1,2.32492]
[1734034638849,0.6415906,3872.0,3871.1,2.32492]
[1734034639050,0.6415906,3872.0,3870.3,0.1607916]
[1734034639290,3.19228,3871.5,3870.3,0.1607916]
[1734034639579,0.03229594,3871.4,3870.3,0.1607916]
[1734034639878,0.03229342,3871.4,3870.5,2.32523]
[1734034640084,0.35473676,3871.4,3870.3,0.1607916]
[1734034640288,0.03229342,3871.4,3870.3,0.1607916]
[1734034640585,0.6093,3871.5,3870.3,0.1607916]
[1734034640586,0.6093,3871.5,3870.9,2.32504]
[1734034640911,0.6093,3871.5,3870.9,2.32501]
[1734034641176,0.6093,3871.5,3870.4,3.0]
[1734034641376,0.6093,3871.5,3870.3,0.1607916]
[1734034641579,0.6093,3871.5,3871.2,2.32485]
[1734034641960,0.6093,3871.5,3871.3,2.32477]
[1734034642289,0.6093,3871.9,3871.4,2.32472]
[1734034642601,0.6093,3873.0,3871.8,2.3245]
[1734034642743,2.61434383,3872.9,3871.8,2.32447]
[1734034643092,0.6093,3873.0,3871.1,3.0]
[1734034643093,0.37458141,3872.8,3871.1,3.0]
[1734034643382,0.6093,3873.0,3871.4,3.0258269]
[1734034643590,0.6093,3873.0,3871.1,0.8163]
[1734034643591,2.58213,3872.8,3871.2,3.0]
[1734034643740,0.0322819,3872.7,3871.7,2.3245]
[1734034643940,0.6093,3873.0,3871.1,0.8163]
[1734034644143,0.6093,3872.8,3871.6,2.32459]
[1734034644387,2.61452489,3872.7,3871.6,2.32459]
[1734034644604,2.58224,3872.6,3871.4,2.32473]
[1734034644830,0.03228489,3872.5,3871.5,2.32462]
[1734034645036,0.03228489,3872.7,3871.2,3.0]
[1734034645195,0.6093,3872.6,3871.5,2.32465]
[1734034645554,0.6093,3872.6,3871.6,2.32461]
[1734034645687,0.64158318,3872.6,3871.5,2.32463]
[1734034645885,0.64158318,3872.6,3871.2,0.35122314]
[1734034646087,0.64158318,3872.6,3871.2,2.32481]
[1734034646334,0.6093,3872.6,3871.2,2.32482]
[1734034646634,0.03228599,3872.5,3871.4,2.32469]
[1734034646797,0.6093,3872.6,3871.7,2.32454]
[1734034647008,0.6093,3872.6,3871.0,3.0]
[1734034647009,0.03228551,3872.5,3871.0,3.0]
[1734034647340,0.03228552,3872.4,3871.6,2.3246]
[1734034647531,0.03228552,3872.4,3871.4,2.32473]
[1734034647738,0.03228552,3872.4,3871.2,5.32485]
[1734034647903,0.64158551,3872.6,3871.7,2.32455]
[1734034648080,0.6093,3872.6,3871.7,2.32455]
[1734034648729,0.93166355,3872.6,3871.3,2.3248]
[1734034648931,0.6093,3872.6,3871.3,2.3248]
[1734034649232,0.6093,3872.6,3871.1,0.59634405]
[1734034649233,0.03228352,3872.5,3871.1,0.59634405]
[1734034649540,0.03228352,3872.5,3870.9,2.83721138]
[1734034649541,2.58249,3872.3,3870.9,0.51223138]
[1734034649685,2.58258,3872.1,3871.0,2.32495]
[1734034649883,0.03228893,3872.1,3870.6,2.32522]
[1734034650222,0.6093,3872.0,3871.0,2.32494]
[1734034650541,0.03228917,3871.9,3870.8,2.32509]
[1734034650687,0.32241792,3871.8,3871.0,2.32497]
[1734034650900,0.32241792,3871.8,3871.2,2.32485]
[1734034651199,0.6093,3872.0,3871.5,2.32467]
[1734034651391,0.6093,3873.0,3872.0,2.32436]
[1734034651586,0.6093,3873.0,3872.1,2.32429]
[1734034651787,0.03227991,3872.9,3871.3,2.3248]
[1734034651999,0.03227991,3872.9,3871.1,3.0]
[1734034652187,0.03227991,3872.9,3872.1,2.32426]
[1734034652525,0.03227991,3872.9,3871.6,2.32458]
[1734034652736,0.03227991,3872.9,3872.0,2.32436]
[1734034653033,0.03227991,3872.9,3871.2,1.33501502]
[1734034653034,0.03227991,3872.9,3871.9,2.32443]
[1734034653399,0.03227991,3872.9,3872.0,2.32435]
[1734034653686,0.6093,3872.8,3871.3,3.0]
[1734034653901,0.6093,3872.8,3872.0,2.32435]
[1734034654113,0.6093,3872.8,3871.2,1.33501502]
[1734034654114,0.03227991,3872.7,3871.3,3.0]
[1734034654317,0.6093,3872.5,3871.4,2.32473]
[1734034654513,0.93168199,3872.5,3870.7,3.0]
[1734034654714,0.93168199,3872.5,3871.9,2.32438]
[1734034654715,0.6093,3872.5,3871.9,2.32438]
[1734034655121,0.6093,3872.5,3871.4,3.0]
[1734034655330,0.6093,3872.5,3871.7,2.32454]
[1734034656226,0.6093,3872.5,3871.0,0.51352724]
[1734034656227,0.03228114,3872.4,3871.4,2.32469]
[1734034656589,0.32239011,3872.3,3871.4,2.32469]
[1734034656801,0.03228389,3872.2,3871.4,2.32469]
[1734034657129,0.6093,3872.1,3870.5,0.51982439]
[1734034657430,0.03228915,3872.0,3870.9,2.32503]
[1734034657649,0.32241691,3871.9,3870.9,2.32503]
[1734034657936,0.03228912,3871.8,3870.6,2.32518]
[1734034658089,0.6093,3871.7,3870.5,0.51982439]
[1734034658296,0.6093,3871.7,3870.6,2.3252]
[1734034658525,0.64158914,3871.7,3870.7,2.32515]
[1734034658829,0.6093,3871.7,3870.9,2.32503]
[1734034659027,0.6093,3871.7,3870.5,3.0]
[1734034659230,0.6093,3871.7,3870.7,3.0]
[1734034659400,0.6093,3871.7,3871.0,2.32492]
[1734034659590,0.6093,3871.7,3871.2,2.32483]
[1734034659788,0.6093,3872.3,3871.6,2.32459]
[1734034660388,0.6093,3872.3,3871.1,2.32487]
[1734034660594,0.6093,3872.3,3871.3,0.7681]
[1734034660795,0.6093,3872.3,3872.1,2.32426]
[1734034661029,0.6093,3872.3,3872.2,2.32426]
[1734034661232,0.6093,3872.3,3871.7,2.32456]
[1734034661531,0.6093,3872.3,3871.3,0.7681]
[1734034661703,0.6093,3872.3,3871.6,2.32458]
[1734034661905,0.6093,3872.3,3871.9,2.32442]
[1734034662629,0.6093,3872.3,3871.4,0.4000587]
[1734034662796,0.6093,3872.3,3871.7,2.32453]
[1734034662996,0.6093,3872.3,3871.8,2.32449]
[1734034664210,0.6093,3872.3,3871.3,1.29400413]
[1734034664414,0.6093,3872.3,3871.4,2.77738911]
[1734034664610,0.6093,3872.3,3871.7,2.32455]
[1734034664823,0.6093,3872.3,3871.4,2.77738911]
[1734034665001,0.6093,3872.3,3871.6,2.32461]
[1734034665204,0.6093,3872.3,3871.7,2.32451]
[1734034665534,0.6093,3872.3,3871.8,2.32449]
[1734034666249,0.6093,3872.3,3871.6,2.3246]
[1734034666402,0.6093,3872.3,3871.3,3.09289]
[1734034666753,0.6093,3872.3,3871.3,4.01707745]
[1734034667424,0.6093,3872.3,3870.6,2.37762617]
[1734034667425,2.58292,3871.6,3870.4,2.14919244]
[1734034667624,2.91649753,3871.9,3870.3,2.4861816]
[1734034667625,0.6093,3871.3,3870.3,0.1607916]
[1734034668503,0.6093,3871.3,3870.5,2.32527]
[1734034668700,0.6093,3871.3,3870.3,0.1607916]
[1734034668900,0.6093,3871.3,3870.4,0.39271916]
[1734034669101,0.6093,3871.3,3870.3,0.1607916]
[1734034669371,2.58326,3871.1,3870.3,0.1607916]
[1734034669644,3.22472418,3871.3,3870.3,0.1607916]
[1734034669852,0.64159418,3871.3,3870.3,0.1607916]
[1734034670062,2.58318,3871.2,3870.3,0.1607916]
[1734034670199,0.32247742,3871.1,3870.3,0.1607916]
[1734034670648,0.03229428,3871.0,3870.3,0.1607916]